Cogmind - Beta 17 @@@ ROGUE MODE // 2026.08.10 @ 18:26:26 Player: Marc Result: Destroyed by D-53 Grenadier with Mini Grenade Launcher Performance ------------- Evolutions (0) 0 Regions Visited (4) 800 Robots Destroyed (9) 45 Value Destroyed (185) 185 Prototype IDs (23) 460 Alien Tech Used (0) 0 Bonus (300) 300 TOTAL SCORE: 1790 Bonus ------- Aligned with FarCom 300 Cogmind --------- Core Integrity 0/250 Matter 72/300 Energy 100/100 System Corruption 0% Temperature Cool (0) Movement Core (50) Location -9/Mines Parts ------- > --- POWER (1) -------- (None) > --- PROPULSION (2) --- (None) > --- UTILITY (2) ------ Structural Scanner Improved Targeting Computer > --- WEAPON (2) ------- (None) > --- INVENTORY (5) ---- Small Storage Unit Skeleton Box Peak State ------------ > --- POWER ------------ Light Ion Engine > --- PROPULSION ------- Flight Unit Flight Unit > --- UTILITY ---------- Improved Targeting Computer Skeleton Box > --- WEAPON ----------- Light Assault Rifle Autogun > --- INVENTORY -------- Flight Unit Small Storage Unit Structural Scanner Improved Targeting Computer [Rating: 14] Favorites ----------- Power Light Ion Engine Engine Light Ion Engine Propulsion Flight Unit Leg Aluminum Leg Hover Unit Improved Hover Unit Flight Unit Flight Unit Utility Improved Targeting Computer Device Seismic Detector Storage Small Storage Unit Processor Improved Targeting Computer Weapon Autogun Energy Gun Small Laser Ballistic Gun Autogun Build | -11 -10 -10 -10 -9 ------- Run | Yrd Mat Min Exi Min Slots Evolved . | . . . . . Power . | . . . . . Propulsion . | . . . . . Utility . | . . . . . Weapon . | . . . . . Parts Attached 19 | . 14 . 4 1 Power 2 | . 2 . . . Engine 2 | . 2 . . . Core . | . . . . . Reactor . | . . . . . Propulsion 7 | . 6 . . 1 Treads . | . . . . . Leg . | . . . . . Wheel . | . . . . . Hover 4 | . 4 . . . Flight 3 | . 2 . . 1 Utility 7 | . 3 . 4 . Device 3 | . 1 . 2 . Storage 1 | . . . 1 . Processor 3 | . 2 . 1 . Hackware . | . . . . . Protection . | . . . . . Artifact . | . . . . . Weapon 3 | . 3 . . . Energy Gun . | . . . . . Energy Cannon . | . . . . . Ballistic Gun 3 | . 3 . . . Ballistic Cannon . | . . . . . Launcher . | . . . . . Special Weapon . | . . . . . Impact Weapon . | . . . . . Slashing Weapon . | . . . . . Piercing Weapon . | . . . . . Special Melee Weapon . | . . . . . Unidentified Prototypes 1 | . . . 1 . Parts Lost 10 | . 4 . . 6 Power 2 | . 1 . . 1 Propulsion 5 | . 2 . . 3 Utility . | . . . . . Weapon 3 | . 1 . . 2 Highest Loss Streak 6 | . 4 . . 6 To Critical Strikes . | . . . . . Average Backups 3 | 6 3 4 4 3 Power . | 1 . . . . Propulsion 1 | 4 1 1 1 1 Utility 1 | . 1 3 2 1 Weapon . | 1 . . . . Tool/Special . | . . . . . Unused Backups 9 | . 8 . . 1 Power . | . . . . . Propulsion 4 | . 4 . . . Utility 1 | . . . . 1 Weapon 4 | . 4 . . . Tool/Special . | . . . . . Average Slot Usage (%) 95 | . 94 100 98 92 Engine 13 | . 12 14 14 12 Leg 1 | . 2 . . . Hover 11 | . 17 . . . Flight 14 | . 6 28 28 24 Device 12 | . 11 14 12 14 Storage 1 | . 1 . 1 . Processor 13 | . 13 14 12 14 Ballistic Gun 26 | . 25 28 28 24 Peak Build Rating 14 | 6 13 9 14 9 Average Rating 10 | 6 10 9 11 8 On Entrance 7 | 6 6 9 9 9 Avg Prop Armor Cover (%) . | . . . . . Naked Turns . | . . . . . Heaviest Build 207 | 12 12 8 207 8 Greatest Support 20 | 20 20 8 8 8 Greatest Overweight (x) 25 | . 3 . 25 . Average Overweight (x) . | . . . . . Largest Inventory Capacity 35 | 8 8 5 35 5 Average Capacity 6 | 8 5 5 8 5 Most Carried 8 | 6 8 4 5 3 Average Carried 3 | 6 3 4 4 2 Final Capacity 8 | 8 5 5 5 5 Final Carried 6 | 6 4 4 3 2 Class Distribution -------------------- 50% | Scavenger-Mutant 46% | Mutant 3% | Hauler-Mutant Dominant Class ---------------- Mutant | -10/Materials Scavenger-Mutant | -10/Mines Scavenger-Mutant | -10/Exiles Scavenger-Mutant | -9/Mines Resources | -11 -10 -10 -10 -9 ----------- Run | Yrd Mat Min Exi Min Matter Collected 340 | 200 140 . . . Remotely . | . . . . . Salvage Created 213 | . 213 . . . Parts 12 | . 12 . . . Haulers Intercepted . | . . . . . Recyclers Shooed . | . . . . . Parts Field Recycled . | . . . . . Retrieved Matter . | . . . . . Parts Self-Destructed . | . . . . . Prevented . | . . . . . Parts Restored . | . . . . . Kills | -11 -10 -10 -10 -9 ------- Run | Yrd Mat Min Exi Min Combat Hostiles Destroyed 9 | . 9 . . . Guns 9 | . 9 . . . Classes Destroyed 2 | . 2 . . . Swarmer 6 | . 6 . . . Grunt 3 | . 3 . . . Best Kill Streak 4 | . 4 . . . Combat Bots Only 4 | . 4 . . . Max Kills in Single Turn 2 | . 2 . . . Gunslinging 1 | . 1 . . . Exploded . | . . . . . Melee . | . . . . . Uniques/NPCs Destroyed . | . . . . . Combat | -11 -10 -10 -10 -9 -------- Run | Yrd Mat Min Exi Min Hostile Shots Fired 87 | . 81 . . 6 Missed 24 | . 24 . . . Hits 63 | . 57 . . 6 Projectile 63 | . 57 . . 6 AOE 6 | . . . . 6 Damage Taken 773 | . 561 . . 212 Core 267 | . 161 . . 106 Absorbed by Shields . | . . . . . Core Remaining (%) 100 | 100 . . . . Volleys Fired 29 | . 29 . . . Largest 2 | . 2 . . . Hottest 46 | . 46 . . . Shots Fired 57 | . 57 . . . Gun 57 | . 57 . . . Cannon . | . . . . . Launcher . | . . . . . Special . | . . . . . Kinetic 57 | . 57 . . . Thermal . | . . . . . Explosive . | . . . . . Electromagnetic . | . . . . . Robot Hit Streak 10 | . 10 . . . Robot Miss Streak 2 | . 2 . . . Penetration Max . | . . . . . Secondary Targets 3 | . 3 . . . Max Gunslinging Chain 1 | . 1 . . . Shots Hit Robots 38 | . 38 . . . Core Hits 11 | . 11 . . . Critical Kills . | . . . . . Critical Parts Destroyed . | . . . . . Critical Strikes . | . . . . . Melee Attacks . | . . . . . Impact . | . . . . . Slashing . | . . . . . Piercing . | . . . . . Sneak Attacks . | . . . . . Combat Hostiles . | . . . . . Follow-up Attacks . | . . . . . Damage Inflicted 562 | . 562 . . . Guns 562 | . 562 . . . Cannons . | . . . . . Explosions . | . . . . . Melee . | . . . . . Ramming . | . . . . . Kinetic 562 | . 562 . . . Thermal . | . . . . . Explosive . | . . . . . Electromagnetic . | . . . . . Impact . | . . . . . Slashing . | . . . . . Piercing . | . . . . . Highest Corruption . | . . . . . Average Corruption . | . . . . . Corruption Purged . | . . . . . Corruption Blocked . | . . . . . Overload Shots . | . . . . . Overflow Damage . | . . . . . Projectiles . | . . . . . Explosions . | . . . . . Melee . | . . . . . Knockbacks . | . . . . . Impact . | . . . . . Kinetic . | . . . . . Secondary . | . . . . . Self-Inflicted Damage . | . . . . . Shots . | . . . . . Rammed . | . . . . . Targets Rammed . | . . . . . Kicked . | . . . . . Crushed . | . . . . . Highest Temperature 91 | . 91 . . . Average Temperature 30 | . 30 . . . Received Heat Transfer 168 | . 168 . . . Siege Activations . | . . . . . Martial Activations . | . . . . . Shielding Activations . | . . . . . Robots Disrupted . | . . . . . Combat Hostiles . | . . . . . Robots Corrupted . | . . . . . Combat Hostiles . | . . . . . Parts Fried . | . . . . . Impact Corruptions . | . . . . . Robots Melted . | . . . . . Combat Hostiles . | . . . . . Parts Melted . | . . . . . Heat Transferred . | . . . . . Parts Sabotaged . | . . . . . Parts Stolen . | . . . . . Parts Stripped . | . . . . . Power Chain Reactions . | . . . . . Alert | -11 -10 -10 -10 -9 ------- Run | Yrd Mat Min Exi Min Maximum Alert Level . | . . . . . Low Security (%) 100 | 100 100 100 . 100 Level 1 . | . . . . . Level 2 . | . . . . . Level 3 . | . . . . . Level 4 . | . . . . . Level 5 . | . . . . . High Security . | . . . . . Max Security . | . . . . . Peak Influence 140 | . 140 31 . 30 Initial 31 | . . 31 . . Average 38 | . 44 31 . 3 Influence Increases 260 | . 230 . . 30 Destroy 0b10 Robot/C 180 | . 180 . . . Destroy Leader 30 | . 30 . . . Successful Hack 4 | . 4 . . . Disable Machine 15 | . 15 . . . Destroy Structure 1 | . 1 . . . Lose Combat Pursuer 30 | . . . . 30 Influence Decreases 260 | . 148 51 31 30 Entered New Map 82 | . . 51 31 . Time Decay 108 | . 108 . . . Lost Part 70 | . 40 . . 30 Squads Dispatched . | . . . . . Investigation . | . . . . . Extermination . | . . . . . Reinforcement . | . . . . . Assault . | . . . . . Garrison . | . . . . . Intercept . | . . . . . Searches Triggered . | . . . . . Construction Impeded . | . . . . . Haulers Reinforced . | . . . . . Active Scanning Responses . | . . . . . Cargo Convoy Interrupts . | . . . . . Stealth | -11 -10 -10 -10 -9 --------- Run | Yrd Mat Min Exi Min Distress Signals . | . . . . . Communications Jammed . | . . . . . Distress Signals . | . . . . . Times Spotted 17 | . 13 . . 4 Peak Tracking Total 6 | . 6 . . 2 Tactical Retreats 1 | . . . . 1 Traps | -11 -10 -10 -10 -9 ------- Run | Yrd Mat Min Exi Min Traps Triggered . | . . . . . Indirectly . | . . . . . Trap Hack Attempts . | . . . . . Triggered . | . . . . . Disarmed . | . . . . . Reprogrammed . | . . . . . Reused . | . . . . . Traps Extracted . | . . . . . Installed . | . . . . . Triggered . | . . . . . Machines | -11 -10 -10 -10 -9 ---------- Run | Yrd Mat Min Exi Min Machines Disabled 1 | . 1 . . . Max in Single Turn 1 | . 1 . . . Machines Repaired . | . . . . . Machines Dismantled . | . . . . . Machines Sabotaged . | . . . . . Overloaded Fab Kills . | . . . . . Hacking | -11 -10 -10 -10 -9 --------- Run | Yrd Mat Min Exi Min Machines Accessed 2 | . 1 . 1 . Terminals 1 | . 1 . . . Fabricators . | . . . . . Repair Stations . | . . . . . Recycling Units . | . . . . . Scanalyzers . | . . . . . Garrison Access . | . . . . . Total Hacks 5 | . 4 . 1 . Successful 4 | . 3 . 1 . Failed 1 | . 1 . . . Catastrophic . | . . . . . Database Lockouts . | . . . . . Manual 1 | . . . 1 . Terminals 4 | . 4 . . . Fabricators . | . . . . . Repair Stations . | . . . . . Recycling Units . | . . . . . Scanalyzers . | . . . . . Garrison Access . | . . . . . Terminal Hacks 4 | . 3 . 1 . Locate Traps 1 | . 1 . . . Maintenance Status 1 | . 1 . . . Reinforcement Status 1 | . 1 . . . Proto ID Catalog 1 | . . . 1 . Fabricator Hacks . | . . . . . Repair Station Hacks . | . . . . . Recycling Unit Hacks . | . . . . . Scanalyzer . | . . . . . Garrison Access Hacks . | . . . . . Unauthorized Hacks . | . . . . . Terminals . | . . . . . Fabricators . | . . . . . Repair Stations . | . . . . . Recycling Units . | . . . . . Scanalyzers . | . . . . . Garrison Access . | . . . . . Data Cores Recovered . | . . . . . Used . | . . . . . Hacking Detections 1 | . 1 . . . Full Trace Events . | . . . . . Feedback Events . | . . . . . Feedback Blocked . | . . . . . Robot Schematics Acquired . | . . . . . Robots Built . | . . . . . Authchips . | . . . . . Time . | . . . . . Total Robot Build Rating . | . . . . . Part Schematics Acquired . | . . . . . Parts Built . | . . . . . Authchips . | . . . . . Time . | . . . . . Total Part Build Rating . | . . . . . Part Studies Acquired . | . . . . . Parts Repaired . | . . . . . Time . | . . . . . Parts Recycled . | . . . . . Recycled Matter . | . . . . . Retrieved Matter . | . . . . . Retrieved Components . | . . . . . Parts Scanalyzed . | . . . . . Part Schematics Acquired . | . . . . . Parts Damaged . | . . . . . Bothacking | -11 -10 -10 -10 -9 ------------ Run | Yrd Mat Min Exi Min Used RIF Installer . | . . . . . Robots Hacked . | . . . . . Non-combat . | . . . . . Combat . | . . . . . Robot Hacks Applied . | . . . . . Relay Couplers Released . | . . . . . Fabnet Peak Effective % . | . . . . . Robots Rewired . | . . . . . Allies Hacked . | . . . . . Hacks Repelled . | . . . . . Allies | -11 -10 -10 -10 -9 -------- Run | Yrd Mat Min Exi Min Total Allies . | . . . . . Largest Group . | . . . . . Highest-Rated Group . | . . . . . Highest-Rated Ally . | . . . . . Total Orders . | . . . . . Ally Attacks . | . . . . . Total Damage . | . . . . . Kills . | . . . . . Allies Corrupted . | . . . . . Allies Melted . | . . . . . Intel | -11 -10 -10 -10 -9 ------- Run | Yrd Mat Min Exi Min Active Infowar (turns) 594 | . 448 9 56 81 Structural 93 | . . . 12 81 Seismic 501 | . 448 9 44 . Robot Analysis Total . | . . . . . Derelict Logs Recovered . | . . . . . Drone Launches . | . . . . . Drone Recoveries . | . . . . . Exploration | -11 -10 -10 -10 -9 ------------- Run | Yrd Mat Min Exi Min Turns Passed 819 | 16 513 9 200 81 Spaces Moved 623 | 14 216 25 247 121 Core 8 | . 4 . . 4 Treads . | . . . . . Legs 29 | 14 15 . . . Wheels . | . . . . . Hover 94 | . 94 . . . Flight 492 | . 103 25 247 117 Fastest Speed 37 | 120 37 37 37 37 Average Speed 60 | 120 53 37 77 37 Slowest Speed 2037 | 120 200 37 2037 50 Overloaded Moves . | . . . . . Propulsion Burnouts . | . . . . . Robots Hopped . | . . . . . Potential Cave-ins . | . . . . . Cave-ins Triggered . | . . . . . Exploration Rate (%) 29 | 2 47 16 61 19 Regions Visited 4 Branch Regions 3 Pre-discovered Areas . | . . . . . Known Exits Taken . | . . . . . Unknown Exits Taken 4 | 1 1 1 1 . Scrap Searched . | . . . . . Spaces Dug . | . . . . . Terrain Destroyed . | . . . . . Melee . | . . . . . Projectile . | . . . . . AOE . | . . . . . Terrain Rammed . | . . . . . Walls Destroyed . | . . . . . Machines Disabled . | . . . . . Actions | -11 -10 -10 -10 -9 --------- Run | Yrd Mat Min Exi Min Total 1025 | 13 577 24 255 156 Wait 315 | . 281 . . 34 Move 619 | 13 215 24 246 121 Hop . | . . . . . Pick Up 19 | . 18 . 1 . Fast Attach 1 | . . . 1 . Attach 18 | . 14 . 3 1 Detach 8 | . 6 . 2 . Swap . | . . . . . Drop 16 | . 14 . 2 . Fire 29 | . 29 . . . Melee . | . . . . . Ram . | . . . . . Kick . | . . . . . Crush . | . . . . . Escape Stasis . | . . . . . Rewire . | . . . . . Trap . | . . . . . Miscellaneous . | . . . . . Route ------- -11/Scrapyard -10/Materials (discovered 2 exits: [*Mat] / [*Min]) -10/Mines -10/Exiles -9/Mines History --------- Turn | Location | Event 1 | -11/Scrapyard | Discovered new exit (range 3) 17 | -11/Scrapyard | Entered Materials 312 | -10/Materials | Build established: Mutant 382 | -10/Materials | Core integrity fell below 50% 421 | -10/Materials | Lost 4 parts (1p2n1w) 511 | -10/Materials | Discovered new exit (range 4) 512 | -10/Materials | Discovered new exit (range 16) 517 | -10/Materials | Derelicts attacked the area 530 | -10/Materials | Entered Mines 538 | -10/Mines | Deemed a non-threat by the Exiles lab entrance 538 | -10/Mines | Discovered new exit (range 5) 539 | -10/Mines | Entered Exiles 549 | -10/Exiles | Met 8R-AWN 555 | -10/Exiles | Met EX-HEX 567 | -10/Exiles | Met EX-BIN 571 | -10/Exiles | Aligned with FarCom system 572 | -10/Exiles | Given EX-Vault access code 580 | -10/Exiles | Opened EX-Vault 582 | -10/Exiles | Found Prototype Device 584 | -10/Exiles | Identified Skeleton Box 612 | -10/Exiles | Warned to stay clear of 0b10 Research branches 647 | -10/Exiles | Met EX-DEC 681 | -10/Exiles | Build established: Scavenger-Mutant 735 | -10/Exiles | Discovered new exit (range 10) 739 | -10/Exiles | Left Exiles lab with Skeleton Box 739 | -10/Exiles | Entered Mines 740 | -9/Mines | Assembled infested the area 817 | -9/Mines | Core integrity fell below 20% 820 | -9/Mines | Destroyed by D-53 Grenadier with Mini Grenade Launcher Last Messages --------------- EX-DEC: Ah I see we have a visitor. One wrong move in here and I'll invert your atomic chain! 00649_ EX-DEC: "Oops, I hope HEX didn't hear that..." 00704_ Discarded Imp. Targeting Computer. 00704_ Acquired Humpback. [Achievement: Tank] 00726_ Dropped Humpback. 00735_ EXIT=FOUND LOCATION=UNKNOWN GOAL=ESCAPE 00739_ Receiving FarCom transmissions... 00740_ ALERT: Infestation in the mines, dispatching Demolisher response squad. 00782_ C-45 Heavy ARC bursts open, deploying its payload. 00782_ D-53 Grenadier unfolds itself. 00816_ Flight Unit destroyed. 00816_ Autogun destroyed. 00818_ Lgt. Ion Engine destroyed. 00818_ Flight Unit destroyed. 00818_ Lgt. Assault Rifle destroyed. Map ----- +----------------------------------------------------+ | ?????????????????????????????????????????????????? | | ????????????????????????????????????########?????? | | ????????????????????????????????????#########????? | | ????????????????????????????????????## ###### # | | ???????????????????????????????????? # #### # | | ???????????????????????????????????? + ##" # | | ???????????????????????????????????? + "%" | | ???????????????????????????????????? # " | | ??????????????????????????????????? ## ## | | ???????????????????????????????####### ### | | ??????????????????????????????####### ##? | | ??????????????????????????????### ###? | | ??????????????????????????????## ####?? | | ??????????????????????????????## ##???? | | ??????????????????????????????### ##???? | | ??????????????????????????????#### ######? | | ???????????????????????????????#### ####### | | ????????????????????????????????### # | | ?????????????????????????????????### ## #### # | | ?????????????????????????????????#### ### #### | | ??????????????????????????????????### ### ##???? | | ???????????????????????????????????## ##?? ##??? | | ???????????????????################## ##?? ##??? | | ???#####?######??#################### ##?? ###??? | | ??##############?#### ##?? ###??? | | ??### #### ###### # @ ##????????? | | ??## ## ##### d ###############????????? | | ??## #### ###############????????? | | ??## ## ##?????????????????????? | | ??### ##?????????????????????? | | ???### ##???????????s?????????? | | ???#### d ###??????????s??????????? | | ????###### ###?????????????????????? | | ?????###### ##??????????????????????? | | ???????#### ##???????????s??????????? | | ??????#### ##??????????????????????? | | ??????### ##??????????????????????? | | ??????## ##### ###??????????????????????? | | ??????### ########### ####??????????????????????? | | ??????#######?############???????????????????????? | | ???????#####???????######????????????????????????? | | ?????????????????????????????????????????????????? | | ?????????????????????????????????????????????????? | | ?????????????????????????????????????????????????? | | ?????????????????????????????????????????????????? | | | | | | | | | | | +----------------------------------------------------+ Best States ------------- Heat Dissipation 25 Energy Generation 10 Energy Capacity 250 Matter Stores 300 Matter Capacity 300 Sight Range 16 Terrain Scan Density 10 Evasion (%) 62 Targeting Accuracy 12 Item Schematics ----------------- None Robot Schematics ------------------ None Fabricated ------------ Nothing Repaired ---------- Nothing Studied --------- None Alien Tech Used ----------------- None Achievements -------------- Tank Challenges ------------ None Game ------ Seed CoreThunderLance Manual? 0 Play Time 00:10:19 Cumulative 13.7 hours Start 2026.08.10 @ 18:08:18 End 2026.08.10 @ 18:26:26 Sessions 1 Manual Loads 0 Difficulty Rogue Special Mode None Game No. 38 Rogue 31 Adventurer 7 Explorer 0 Win Type - Total 0 Types 0/0/0/0/0/0/0/0/0/0 Lore% 10 Gallery% 18 Achievement% 14 Wizard Run 0 Options --------- Layout 0 ASCII 0 Keyboard 0 Movement Mouse Keybinds 0 Fullscreen 1 Font 18/SmallcapsGlow Map View 38x25 Zoom Use 100% Tactical HUD 1 Map Filters NONE Filters NONE Steam 1 RUN: cff964f6-0bee-4a0b-80ea-8c8f59a9c10d